Workbook

Sheet Header
A1: Name | B1: Template
A2: Location | B2: Anywhere, USA
A3: Population | B3: 500
A4: Total Area (acres) | B4: 1000
A5: Buildings (incl. F&ES) | B5: 9
A6: Base F&ES Stations | B6: 1
A7: Mutual Aid Stations | B7: 1
A8: Vehicles | B8: 9
A9: Maintenance Period | B9: 0.05
A10: Maintenance Time | B10: 30
A11: Replications | B11: 30
A12: Random Seed | B12: 1234

Sheet Types
A1: Building Types | B1: Vehicle Types | C1: Station Types
A2: Residential | B2: Pumper | C2: Mil
A3: Commercial | B3: Tanker | C3: Civ
A4: Retail | B4: EMS
A5: Warehouse | B5: HazMat
A6: Manufacturing | B6: Command
A7: Laboratory | B7: Auxiliary
A8: Dock
A9: Airfield

Sheet Buildings
A1: Index | B1: BuildingID | C1: BuildingName | D1: Type | E1: Floors | F1: Floor Area (sq ft) | G1: Units
A2: 1 | B2: 100 | C2: Building A | D2: Residential | E2: 3 | F2: 750 | G2: 1
A3: 2 | B3: 101 | C3: Building B | D3: Commercial | E3: 5 | F3: 10000 | G3: 1
A4: 3 | B4: 102 | C4: Building C | D4: Retail | E4: 2 | F4: 10000 | G4: 1
A5: 4 | B5: 103 | C5: Building D | D5: Warehouse | E5: 4 | F5: 10000 | G5: 1
A6: 5 | B6: 104 | C6: Building E | D6: Manufacturing | E6: 1 | F6: 20000 | G6: 1
A7: 6 | B7: 105 | C7: Building F | D7: Laboratory | E7: 3 | F7: 5000 | G7: 1
A8: 7 | B8: 106 | C8: Building G | D8: Dock | E8: 1 | F8: 50000 | G8: 1
A9: 8 | B9: 107 | C9: Building H | D9: Airfield | E9: 1 | F9: 100000 | G9: 1
A10: 9 | B10: 1 | C10: Fire Station 1 | D10: Commercial | E10: 1 | F10: 30000 | G10: 1

Sheet Stations
A1: Index | B1: Station | C1: Vehicles | D1: Crew | E1: Type
A2: 1 | B2: Onsite Station 1 | C2: 6 | D2: 54 | E2: Mil
A3: 2 | B3: Mutual Aid Station 1 | C3: 3 | D3: 4 | E3: Civ

Sheet Vehicles
A1: Index | B1: Vehicle | C1: Type | D1: Location | E1: Crew on Duty
A2: 1 | B2: Pumper 1 | C2: Pumper | D2: 1 | E2: 4
A3: 2 | B3: Tanker 1 | C3: Tanker | D3: 1 | E3: 4
A4: 3 | B4: Ambulance 1 | C4: EMS | D4: 1 | E4: 2
A5: 4 | B5: HazMat 1 | C5: HazMat | D5: 1 | E5: 2
A6: 5 | B6: Command 1 | C6: Command | D6: 1 | E6: 1
A7: 6 | B7: Aux 1 | C7: Auxiliary | D7: 1 | E7: 1
A8: 7 | B8: Pumper 2 | C8: Pumper | D8: 2 | E8: 4
A9: 8 | B9: Pumper 3 | C9: Pumper | D9: 2 | E9: 4
A10: 9 | B10: Ambulance 2 | C10: EMS | D10: 2 | E10: 2

Sheet Simulation Scenarios
G2: Fire Origination | H2: Final Spread Limited to: | I2: Probability | J2: Prob Bins | K2: Damage/Scale | L2: alpha | M2: beta | R2: Probability Given Origination
G3: Ground Level | H3: Original Room | I3: =R3*$E$8 -> 0.105 | J3: 0 | K3: 0.2 | L3: 4.184347059 | M3: 9.691044543 | R3: =1-E11 -> 0.15 | T3: =AVERAGE(L3/L$7,L8/L$12)*T$7 -> 4.175702418 | U3: =AVERAGE(M3/M$7,M8/M$12)*U$7 -> 9.47222047
G4: Ground Level | H4: 2 rooms on same floor | I4: =R4*$E$8 -> 0.08925 | J4: =J3+I3 -> 0.105 | K4: 0.4 | L4: 4.065902459 | M4: 11.74259684 | R4: =E11-SUM(R5:R7) -> 0.1275 | T4: 4.062992835 | U4: 11.59230262
G5: Ground Level | H5: 3 rooms on same floor | I5: =R5*$E$8 -> 0.10115 | J5: =J4+I4 -> 0.19425 | K5: 0.6 | L5: 4.029640292 | M5: 13.09936973 | R5: =E11^2-SUM(R6:R7) -> 0.1445 | T5: 4.028052712 | U5: 13.0059678
G6: Ground Level | H6: 1 Room in Other Floor | I6: =R6*$E$8 -> 0.06069 | J6: 0.2954 | K6: 0.8 | L6: 4.011326414 | M6: 14.14134048 | R6: =E11^2*E12-R7 -> 0.0867 | T6: 4.010570752 | U6: 14.09763206
G7: Ground Level | H7: Whole House | I7: =R7*$E$8 -> 0.34391 | J7: 0.35609 | K7: 1 | L7: 4 | M7: 15 | R7: =E11^3*E12 -> 0.4913 | T7: 4 | U7: 15
A8: %Prob Fire Starting at Ground Level (1-P for Uppel Level) | E8: 0.7 | G8: Upper Level | H8: Original Room | I8: =R8*(1-$E$8) -> 0.045 | J8: =J7+I7 -> 0.7 | K8: 0.2 | L8: 3.750351999 | M8: 10.48718258 | R8: =1-E15 -> 0.15 | T8: =AVERAGE(L3/L$7,L8/L$12)*T$12 -> 3.758132176 | U8: 10.7351832
G9: Upper Level | H9: 2 rooms on same floor | I9: =R9*(1-$E$8) -> 0.03825 | J9: 0.745 | K9: 0.4 | L9: 3.65407489 | M9: 12.96760953 | R9: =E15-SUM(R10:R12) -> 0.1275 | T9: 3.656693551 | U9: 13.13794297
A10: Ground Level | G10: Upper Level | H10: 3 rooms on same floor | I10: =R10*(1-$E$8) -> 0.0867 | J10: 0.78325 | K10: 0.6 | L10: 3.623818619 | M10: 14.63424133 | R10: =E15^2-SUM(R11:R12) -> 0.289 | T10: 3.625247441 | U10: 14.74009684
A11: % Prob Spread Room to Room | E11: 0.85 | G11: Upper Level | H11: 1 Room in Other Floor | I11: =R11*(1-$E$8) -> 0.0195075 | J11: 0.86995 | K11: 0.8 | L11: 3.60883358 | M11: 15.92778013 | R11: =E15^2*E16-R12 -> 0.065025 | T11: 3.609513677 | U11: 15.97731633
A12: % Prob Spread from floor to floor (after adjacent rooms ignited) | E12: 0.8 | G12: Upper Level | H12: Whole House | I12: =R12*(1-$E$8) -> 0.1105425 | J12: 0.8894575 | K12: 1 | L12: 3.6 | M12: 17 | R12: =E15^3*E16 -> 0.368475 | T12: 3.6 | U12: 17
A14: Upper Level
A15: % Prob Spread Room to Room | E15: 0.85
A16: % Prob Spread from floor to floor (after adjacent rooms ignited) | E16: 0.6

Sheet ResponseTime
A1: Station Index | B1: 1 | C1: 2
A2: Station Name | B2: Onsite Station 1 | C2: Mutual Aid Station 1
A3: Building Name
A4: Building A | B4: 5 | C4: 7
A5: Building B | B5: 4 | C5: 8
A6: Building C | B6: 6 | C6: 5
A7: Building D | B7: 7 | C7: 4
A8: Building E | B8: 5 | C8: 5
A9: Building F | B9: 4 | C9: 5
A10: Building G | B10: 7 | C10: 5
A11: Building H | B11: 2 | C11: 9
A12: Fire Station 1 | B12: 0 | C12: 6

Sheet CallData
A1: Period Start | B1: 2010-01-01
A2: Period End | B2: 2011-12-31
A3: Total Days | B3: =B2-B1 -> 729
E4: Civilian | F4: F&ES
A5: Building Fires | B5: 20 | D5: Fire Injuries | E5: 0 | F5: 2
A6: Vehicle Fires | B6: 10 | D6: Non-Fire Injuries | E6: 0 | F6: 1
A7: Other Fires | B7: 30 | D7: Fire Deaths | E7: 0 | F7: 0
A8: Overpressure Ruptures, Explosion, Overheat | B8: 10 | D8: Non-Fire Deaths | E8: 0 | F8: 0
A9: Medical Treatment | B9: 500
A10: Other Rescue | B10: 30
A11: Hazardous Conditions | B11: 150
A12: Service Calls | B12: 200
A13: Good Intent | B13: 75
A14: Severe Weather & Natural Disaster | B14: 12
A15: Special Incident | B15: 1
A16: Unknown Incident | B16: 0
A17: Malicious False Calls | B17: 5
A18: Other False Calls | B18: 100
A20: Total Calls | B20: =SUM(B5:B18) -> 1143
G23: =1095*24 -> 26280
G24: =G23/33 -> 796.3636364

Sheet Results
A1: Base: | B1: =Header!B1 -> Template | D1: Average Response Time | G1: Percent On Time | K1: Response Times in Minutes | P1: Fire Loss vs. Timeliness
A2: Reps: | B2: =Header!B11 -> 30 | D2: 1st Truck | E2: 4.3047719 | H2: On Time | I2: Late | L2: 1st Truck | M2: 2nd Truck | N2: 3rd Truck | Q2: On Time | R2: Late
D3: 2nd Truck | E3: 4.871986389 | G3: 1st Truck | H3: 0.7599999905 | I3: 0.2399999946 | K3: 1 | L3: 0 | M3: 0 | N3: 0 | P3: Max | Q3: 0.4647313654 | R3: 0.5635592937
D4: 3rd Truck | E4: 4.971665382 | G4: 2nd Truck | H4: 0.5400000215 | I4: 0.4600000083 | K4: 2 | L4: 0 | M4: 0 | N4: 0 | P4: 3rd Quartile | Q4: 0.1698606759 | R4: 0.2646805644
G5: 3rd Truck | H5: 0.5 | I5: 0.5 | K5: 3 | L5: 76 | M5: 47 | N5: 41 | P5: Median | Q5: 0.1173510924 | R5: 0.1589528024
K6: 4 | L6: 119 | M6: 90 | N6: 84 | P6: 2nd Quartile | Q6: 0.06800968945 | R6: 0.1050424129
K7: 5 | L7: 85 | M7: 76 | N7: 76 | P7: Min | Q7: 0 | R7: 0
K8: 6 | L8: 25 | M8: 68 | N8: 74
K9: 7 | L9: 9 | M9: 33 | N9: 39
K10: 8 | L10: 0 | M10: 0 | N10: 0 | Q10: On Time | R10: Late
K11: 9 | L11: 0 | M11: 0 | N11: 0 | P11: Max | Q11: 0.2948706746 | R11: 0.2988787293
K12: 10 | L12: 0 | M12: 0 | N12: 0 | P12: 3rd Quartile | Q12: 0.05250958353 | R12: 0.105727762
K13: 11 | L13: 0 | M13: 0 | N13: 0 | P13: Median | Q13: 0.04934140295 | R13: 0.05391038954
K14: 12 | L14: 0 | M14: 0 | N14: 0 | P14: 1st Quartile | Q14: 0.06800968945 | R14: 0.1050424129
K15: 13 | L15: 0 | M15: 0 | N15: 0 | P15: Min | Q15: 0.06800968945 | R15: 0.1050424129
K16: 14 | L16: 0 | M16: 0 | N16: 0
K17: 15 | L17: 0 | M17: 0 | N17: 0
